[Event "Titled Tuesday Blitz May 10 Early 2022"]
[White "Baches Garcia, Guillermo"]
[Black "Vignesh, N R"]
[WhiteFideId "2209764"]
[BlackFideId "25012215"]
[WhiteElo "2536"]
[BlackElo "2363"]
[Result "0-1"]
[Round "09"]
[TimeControl "180+1"]
[Date "2022.05.11"]
[WhiteClock "0:00:01"]
[BlackClock "0:00:17"]

1. e4 {[%clk 0:03:00]}  e6 {[%clk 0:02:59]} 2. d4 {[%clk 0:03:00]}  d5 {[%clk 0:03:00]} 3. exd5 {[%clk 0:03:01]}  exd5 {[%clk 0:03:00]} 4. Nf3 {[%clk 0:03:01]}  Bd6 {[%clk 0:02:58]} 5. c4 {[%clk 0:03:01]}  dxc4 {[%clk 0:02:52]} 6. Bxc4 {[%clk 0:03:02]}  Nf6 {[%clk 0:02:52]} 7. O-O {[%clk 0:03:01]}  O-O {[%clk 0:02:52]} 8. Nc3 {[%clk 0:03:01]}  h6 {[%clk 0:02:51]} 9. Qd3 {[%clk 0:02:56]}  Bg4 {[%clk 0:02:45]} 10. Ne5 {[%clk 0:02:27]}  Nc6 {[%clk 0:02:33]} 11. Nxg4 {[%clk 0:02:03]}  Nxg4 {[%clk 0:02:33]} 12. h3 {[%clk 0:01:52]}  Qh4 {[%clk 0:02:31]} 13. Ne4 {[%clk 0:01:36]}  Nf6 {[%clk 0:02:14]} 14. Nxd6 {[%clk 0:01:24]}  cxd6 {[%clk 0:02:15]} 15. Be3 {[%clk 0:01:24]}  a6 {[%clk 0:02:14]} 16. Bb3 {[%clk 0:01:18]}  Rac8 {[%clk 0:02:09]} 17. Rac1 {[%clk 0:01:17]}  Nb4 {[%clk 0:02:08]} 18. Qf5 {[%clk 0:01:06]}  Nc6 {[%clk 0:01:51]} 19. g3 {[%clk 0:00:44]}  Qe4 {[%clk 0:01:47]} 20. Bc2 {[%clk 0:00:40]}  Qxf5 {[%clk 0:01:38]} 21. Bxf5 {[%clk 0:00:41]}  Rcd8 {[%clk 0:01:38]} 22. Rfd1 {[%clk 0:00:26]}  Nd5 {[%clk 0:01:37]} 23. Be4 {[%clk 0:00:24]}  Nce7 {[%clk 0:01:31]} 24. Rc2 {[%clk 0:00:19]}  f5 {[%clk 0:01:25]} 25. Bg2 {[%clk 0:00:17]}  Rc8 {[%clk 0:01:22]} 26. Rdc1 {[%clk 0:00:17]}  Rxc2 {[%clk 0:01:22]} 27. Rxc2 {[%clk 0:00:18]}  Kf7 {[%clk 0:01:22]} 28. Kf1 {[%clk 0:00:15]}  Ke6 {[%clk 0:01:22]} 29. h4 {[%clk 0:00:13]}  b5 {[%clk 0:01:17]} 30. a3 {[%clk 0:00:13]}  f4 {[%clk 0:01:15]} 31. gxf4 {[%clk 0:00:11]}  Nxf4 {[%clk 0:01:15]} 32. Bb7 {[%clk 0:00:10]}  Ned5 {[%clk 0:01:07]} 33. Bxa6 {[%clk 0:00:09]}  Ng6 {[%clk 0:00:55]} 34. Ke2 {[%clk 0:00:08]}  b4 {[%clk 0:00:50]} 35. a4 {[%clk 0:00:08]}  Nxh4 {[%clk 0:00:45]} 36. Bc8+ {[%clk 0:00:07]}  Ke7 {[%clk 0:00:45]} 37. a5 {[%clk 0:00:08]}  Nc3+ {[%clk 0:00:39]} 38. bxc3 {[%clk 0:00:02]}  Rxc8 {[%clk 0:00:39]} 39. Kd2 {[%clk 0:00:02]}  Nf3+ {[%clk 0:00:32]} 40. Kc1 {[%clk 0:00:02]}  bxc3 {[%clk 0:00:31]} 41. a6 {[%clk 0:00:02]}  Ra8 {[%clk 0:00:29]} 42. Ra2 {[%clk 0:00:02]}  Ke6 {[%clk 0:00:20]} 43. d5+ {[%clk 0:00:02]}  Kxd5 {[%clk 0:00:20]} 44. a7 {[%clk 0:00:02]}  Nd4 {[%clk 0:00:19]} 45. Ra6 {[%clk 0:00:02]}  Nb5 {[%clk 0:00:17]} 46. Kc2 {[%clk 0:00:02]}  Kc4 {[%clk 0:00:17]} 47. Rc6+ {[%clk 0:00:01]}  Kb4 {[%clk 0:00:17]} 48. Rb6 {[%clk 0:00:01]}  d5 {[%clk 0:00:17]} 49. Rb7 {[%clk 0:00:01]}  d4 {[%clk 0:00:17]} 0-1


[Site "https://www.chess.com"]

[Event "Titled Tuesday Blitz May 10 Early 2022"]
[White "Bachmann, Axel"]
[Black "Yilmaz, Mustafa"]
[WhiteFideId "3700488"]
[BlackFideId "6302718"]
[WhiteElo "2587"]
[BlackElo "2568"]
[Result "1-0"]
[Round "09"]
[TimeControl "180+1"]
[Date "2022.05.10"]
[WhiteClock "0:00:05"]
[BlackClock "0:00:06"]

1. e4 {[%clk 0:02:56]}  c5 {[%clk 0:02:59]} 2. Nf3 {[%clk 0:02:56]}  d6 {[%clk 0:02:58]} 3. Bc4 {[%clk 0:02:55]}  Nf6 {[%clk 0:02:57]} 4. d3 {[%clk 0:02:54]}  g6 {[%clk 0:02:56]} 5. c3 {[%clk 0:02:50]}  Bg7 {[%clk 0:02:56]} 6. O-O {[%clk 0:02:50]}  O-O {[%clk 0:02:56]} 7. Nbd2 {[%clk 0:02:46]}  Nc6 {[%clk 0:02:56]} 8. Bb3 {[%clk 0:02:46]}  Rb8 {[%clk 0:02:53]} 9. h3 {[%clk 0:02:38]}  b5 {[%clk 0:02:52]} 10. d4 {[%clk 0:02:38]}  e5 {[%clk 0:02:43]} 11. dxe5 {[%clk 0:02:16]}  dxe5 {[%clk 0:02:39]} 12. Qe2 {[%clk 0:02:15]}  c4 {[%clk 0:02:35]} 13. Bc2 {[%clk 0:02:15]}  h6 {[%clk 0:02:34]} 14. Rd1 {[%clk 0:02:15]}  Qc7 {[%clk 0:02:33]} 15. Nf1 {[%clk 0:02:15]}  Be6 {[%clk 0:02:32]} 16. Ne3 {[%clk 0:02:06]}  Rfd8 {[%clk 0:02:31]} 17. Nh2 {[%clk 0:01:51]}  Rxd1+ {[%clk 0:02:18]} 18. Qxd1 {[%clk 0:01:52]}  Rd8 {[%clk 0:02:17]} 19. Qf3 {[%clk 0:01:53]}  h5 {[%clk 0:02:09]} 20. Nef1 {[%clk 0:01:46]}  Nd7 {[%clk 0:02:01]} 21. Bg5 {[%clk 0:01:40]}  Rb8 {[%clk 0:01:58]} 22. Ne3 {[%clk 0:01:36]}  Nc5 {[%clk 0:01:35]} 23. Nd5 {[%clk 0:01:35]}  Bxd5 {[%clk 0:01:35]} 24. exd5 {[%clk 0:01:36]}  Ne7 {[%clk 0:01:32]} 25. Rd1 {[%clk 0:01:09]}  Nc8 {[%clk 0:01:27]} 26. g4 {[%clk 0:01:04]}  hxg4 {[%clk 0:01:00]} 27. Nxg4 {[%clk 0:01:03]}  f5 {[%clk 0:01:00]} 28. Nf6+ {[%clk 0:00:47]}  Bxf6 {[%clk 0:00:56]} 29. Bxf6 {[%clk 0:00:47]}  Rb6 {[%clk 0:00:54]} 30. Bg5 {[%clk 0:00:16]}  e4 {[%clk 0:00:54]} 31. Qe3 {[%clk 0:00:08]}  Nd3 {[%clk 0:00:52]} 32. Qd4 {[%clk 0:00:06]}  Nd6 {[%clk 0:00:45]} 33. h4 {[%clk 0:00:03]}  Nf7 {[%clk 0:00:44]} 34. Be3 {[%clk 0:00:03]}  Ra6 {[%clk 0:00:40]} 35. b3 {[%clk 0:00:03]}  Rxa2 {[%clk 0:00:37]} 36. Bb1 {[%clk 0:00:04]}  Ra6 {[%clk 0:00:35]} 37. bxc4 {[%clk 0:00:04]}  Qxc4 {[%clk 0:00:35]} 38. Bxd3 {[%clk 0:00:03]}  Qxd4 {[%clk 0:00:33]} 39. Bxd4 {[%clk 0:00:04]}  exd3 {[%clk 0:00:33]} 40. Rxd3 {[%clk 0:00:05]}  Nd6 {[%clk 0:00:28]} 41. Bc5 {[%clk 0:00:05]}  Ne4 {[%clk 0:00:28]} 42. Bb4 {[%clk 0:00:06]}  Nd6 {[%clk 0:00:13]} 43. Re3 {[%clk 0:00:06]}  Kf7 {[%clk 0:00:13]} 44. Re6 {[%clk 0:00:05]}  Ra1+ {[%clk 0:00:13]} 45. Kg2 {[%clk 0:00:05]}  Nc4 {[%clk 0:00:13]} 46. Re7+ {[%clk 0:00:06]}  Kf6 {[%clk 0:00:13]} 47. d6 {[%clk 0:00:07]}  a5 {[%clk 0:00:12]} 48. d7 {[%clk 0:00:07]}  Rd1 {[%clk 0:00:13]} 49. Bc5 {[%clk 0:00:06]}  Ne5 {[%clk 0:00:11]} 50. Rxe5 {[%clk 0:00:05]}  Rxd7 {[%clk 0:00:08]} 51. Bd4 {[%clk 0:00:05]}  b4 {[%clk 0:00:08]} 52. Rxa5+ {[%clk 0:00:03]}  Ke6 {[%clk 0:00:07]} 53. Ra6+ {[%clk 0:00:03]}  Kd5 {[%clk 0:00:07]} 54. Rxg6 {[%clk 0:00:04]}  Kc4 {[%clk 0:00:08]} 55. cxb4 {[%clk 0:00:03]}  Kxd4 {[%clk 0:00:08]} 56. h5 {[%clk 0:00:03]}  Ke5 {[%clk 0:00:08]} 57. b5 {[%clk 0:00:03]}  Rb7 {[%clk 0:00:03]} 58. b6 {[%clk 0:00:03]}  Rh7 {[%clk 0:00:03]} 59. h6 {[%clk 0:00:03]}  Kf4 {[%clk 0:00:04]} 60. Kh3 {[%clk 0:00:02]}  Rd7 {[%clk 0:00:04]} 61. Kh4 {[%clk 0:00:03]}  Rd1 {[%clk 0:00:04]} 62. Kh3 {[%clk 0:00:03]}  Rh1+ {[%clk 0:00:05]} 63. Kg2 {[%clk 0:00:04]}  Rd1 {[%clk 0:00:05]} 64. h7 {[%clk 0:00:04]}  Rd8 {[%clk 0:00:06]} 65. Rg8 {[%clk 0:00:05]} 1-0


[Site "https://www.chess.com"]

[Event "Titled Tuesday Blitz May 10 Early 2022"]
[White "Bai, Adelard"]
[Black "Heinemann, Josefine"]
[WhiteFideId "16301188"]
[BlackFideId "12900460"]
[WhiteElo "2120"]
[BlackElo "2300"]
[Result "1-0"]
[Round "09"]
[TimeControl "180+1"]
[Date "2022.05.11"]
[WhiteClock "0:00:07"]
[BlackClock "0:00:02"]

1. d4 {[%clk 0:03:00]}  d5 {[%clk 0:02:58]} 2. c4 {[%clk 0:02:53]}  c6 {[%clk 0:02:53]} 3. cxd5 {[%clk 0:02:53]}  cxd5 {[%clk 0:02:52]} 4. Bf4 {[%clk 0:02:53]}  Nc6 {[%clk 0:02:48]} 5. e3 {[%clk 0:02:53]}  Nf6 {[%clk 0:02:45]} 6. Nc3 {[%clk 0:02:52]}  Bf5 {[%clk 0:02:43]} 7. Qb3 {[%clk 0:02:51]}  Na5 {[%clk 0:02:39]} 8. Qa4+ {[%clk 0:02:47]}  Bd7 {[%clk 0:02:39]} 9. Qc2 {[%clk 0:02:46]}  e6 {[%clk 0:02:38]} 10. Bd3 {[%clk 0:02:44]}  Be7 {[%clk 0:02:34]} 11. Nf3 {[%clk 0:02:33]}  O-O {[%clk 0:02:16]} 12. O-O {[%clk 0:02:31]}  Rc8 {[%clk 0:02:04]} 13. Ne5 {[%clk 0:02:24]}  Nc6 {[%clk 0:01:41]} 14. Nxd7 {[%clk 0:02:15]}  Qxd7 {[%clk 0:01:41]} 15. Qe2 {[%clk 0:02:12]}  a6 {[%clk 0:01:38]} 16. Rfc1 {[%clk 0:01:59]}  Nb4 {[%clk 0:01:33]} 17. Bb1 {[%clk 0:01:57]}  b5 {[%clk 0:01:21]} 18. h3 {[%clk 0:01:45]}  h6 {[%clk 0:01:10]} 19. Qd2 {[%clk 0:01:21]}  Bd6 {[%clk 0:01:06]} 20. Bxd6 {[%clk 0:01:19]}  Qxd6 {[%clk 0:01:07]} 21. a4 {[%clk 0:01:02]}  Qb6 {[%clk 0:00:50]} 22. axb5 {[%clk 0:00:56]}  axb5 {[%clk 0:00:49]} 23. Bd3 {[%clk 0:00:57]}  Nxd3 {[%clk 0:00:48]} 24. Qxd3 {[%clk 0:00:58]}  b4 {[%clk 0:00:49]} 25. Na4 {[%clk 0:00:58]}  Qd6 {[%clk 0:00:46]} 26. Nc5 {[%clk 0:00:54]}  Nd7 {[%clk 0:00:37]} 27. Qb5 {[%clk 0:00:50]}  Nxc5 {[%clk 0:00:36]} 28. Rxc5 {[%clk 0:00:47]}  Rb8 {[%clk 0:00:35]} 29. Qd3 {[%clk 0:00:45]}  Ra8 {[%clk 0:00:29]} 30. Rac1 {[%clk 0:00:44]}  g6 {[%clk 0:00:25]} 31. g3 {[%clk 0:00:44]}  h5 {[%clk 0:00:24]} 32. h4 {[%clk 0:00:43]}  Qa6 {[%clk 0:00:23]} 33. Qd2 {[%clk 0:00:39]}  b3 {[%clk 0:00:21]} 34. Qc3 {[%clk 0:00:37]}  Rfb8 {[%clk 0:00:20]} 35. Rc7 {[%clk 0:00:36]}  Qe2 {[%clk 0:00:19]} 36. Re1 {[%clk 0:00:26]}  Qf3 {[%clk 0:00:19]} 37. Rc1 {[%clk 0:00:16]}  Ra2 {[%clk 0:00:18]} 38. Rb1 {[%clk 0:00:08]}  Raa8 {[%clk 0:00:15]} 39. Qd2 {[%clk 0:00:06]}  Kg7 {[%clk 0:00:14]} 40. Rbc1 {[%clk 0:00:07]}  Ra2 {[%clk 0:00:13]} 41. R7c3 {[%clk 0:00:06]}  Qf5 {[%clk 0:00:12]} 42. Rd3 {[%clk 0:00:04]}  Ra7 {[%clk 0:00:11]} 43. Rcc3 {[%clk 0:00:04]}  Rab7 {[%clk 0:00:11]} 44. Qd1 {[%clk 0:00:04]}  Qg4 {[%clk 0:00:11]} 45. Qxg4 {[%clk 0:00:03]}  hxg4 {[%clk 0:00:12]} 46. Kf1 {[%clk 0:00:04]}  f5 {[%clk 0:00:12]} 47. Ke2 {[%clk 0:00:04]}  g5 {[%clk 0:00:13]} 48. hxg5 {[%clk 0:00:04]}  Kg6 {[%clk 0:00:13]} 49. Rc6 {[%clk 0:00:05]}  Rb6 {[%clk 0:00:12]} 50. Rdc3 {[%clk 0:00:05]}  Kxg5 {[%clk 0:00:12]} 51. Kd3 {[%clk 0:00:04]}  Kf6 {[%clk 0:00:12]} 52. Rxb6 {[%clk 0:00:04]}  Rxb6 {[%clk 0:00:12]} 53. Rc8 {[%clk 0:00:04]}  e5 {[%clk 0:00:12]} 54. Rf8+ {[%clk 0:00:04]}  Ke7 {[%clk 0:00:10]} 55. Rxf5 {[%clk 0:00:04]}  e4+ {[%clk 0:00:10]} 56. Kc3 {[%clk 0:00:04]}  Ke6 {[%clk 0:00:11]} 57. Re5+ {[%clk 0:00:04]}  Kd6 {[%clk 0:00:10]} 58. Rg5 {[%clk 0:00:05]}  Rb8 {[%clk 0:00:10]} 59. Rg6+ {[%clk 0:00:05]}  Kd7 {[%clk 0:00:09]} 60. Rxg4 {[%clk 0:00:05]}  Rf8 {[%clk 0:00:10]} 61. Rf4 {[%clk 0:00:06]}  Rb8 {[%clk 0:00:09]} 62. Rf5 {[%clk 0:00:06]}  Ke6 {[%clk 0:00:09]} 63. Re5+ {[%clk 0:00:06]}  Kd6 {[%clk 0:00:09]} 64. g4 {[%clk 0:00:04]}  Rg8 {[%clk 0:00:09]} 65. Kxb3 {[%clk 0:00:05]}  Rxg4 {[%clk 0:00:09]} 66. Rf5 {[%clk 0:00:05]}  Rg1 {[%clk 0:00:09]} 67. Kb4 {[%clk 0:00:04]}  Rb1 {[%clk 0:00:08]} 68. b3 {[%clk 0:00:05]}  Rb2 {[%clk 0:00:09]} 69. Rf6+ {[%clk 0:00:05]}  Ke7 {[%clk 0:00:08]} 70. Rf4 {[%clk 0:00:06]}  Kd6 {[%clk 0:00:08]} 71. Ka4 {[%clk 0:00:07]}  Ra2+ {[%clk 0:00:08]} 72. Kb5 {[%clk 0:00:07]}  Rb2 {[%clk 0:00:07]} 73. b4 {[%clk 0:00:08]}  Rb1 {[%clk 0:00:08]} 74. Rf6+ {[%clk 0:00:08]}  Ke7 {[%clk 0:00:08]} 75. Rf4 {[%clk 0:00:09]}  Kd6 {[%clk 0:00:08]} 76. Ka5 {[%clk 0:00:10]}  Ra1+ {[%clk 0:00:07]} 77. Kb6 {[%clk 0:00:10]}  Rb1 {[%clk 0:00:08]} 78. b5 {[%clk 0:00:11]}  Rb2 {[%clk 0:00:08]} 79. Rf6+ {[%clk 0:00:11]}  Ke7 {[%clk 0:00:08]} 80. Rf5 {[%clk 0:00:11]}  Kd6 {[%clk 0:00:08]} 81. Ka6 {[%clk 0:00:10]}  Ra2+ {[%clk 0:00:08]} 82. Kb7 {[%clk 0:00:10]}  Rb2 {[%clk 0:00:08]} 83. b6 {[%clk 0:00:11]}  Rb1 {[%clk 0:00:08]} 84. Rf6+ {[%clk 0:00:11]}  Kd7 {[%clk 0:00:07]} 85. Rf5 {[%clk 0:00:11]}  Kd6 {[%clk 0:00:07]} 86. Ka7 {[%clk 0:00:11]}  Ra1+ {[%clk 0:00:08]} 87. Kb8 {[%clk 0:00:12]}  Kc6 {[%clk 0:00:03]} 88. b7 {[%clk 0:00:09]}  Rb1 {[%clk 0:00:03]} 89. Rf6+ {[%clk 0:00:09]}  Kd7 {[%clk 0:00:03]} 90. Rf7+ {[%clk 0:00:10]}  Kc6 {[%clk 0:00:03]} 91. Rc7+ {[%clk 0:00:09]}  Kd6 {[%clk 0:00:03]} 92. Kc8 {[%clk 0:00:08]}  Rh1 {[%clk 0:00:02]} 93. b8=Q {[%clk 0:00:07]} 1-0


[Site "https://www.chess.com"]

[Event "Titled Tuesday Blitz May 10 Early 2022"]
[White "Belenkaya, Dina"]
[Black "Marin Ramirez, Gerardo"]
[WhiteFideId "24142654"]
[BlackFideId "3901068"]
[WhiteElo "2196"]
[BlackElo "1920"]
[Result "1-0"]
[Round "09"]
[TimeControl "180+1"]
[Date "2022.05.11"]
[WhiteClock "0:00:23"]
[BlackClock "0:00:23"]

1. e4 {[%clk 0:02:56]}  c5 {[%clk 0:02:58]} 2. Nc3 {[%clk 0:02:50]}  e6 {[%clk 0:02:56]} 3. Nf3 {[%clk 0:02:50]}  a6 {[%clk 0:02:54]} 4. g3 {[%clk 0:02:49]}  b5 {[%clk 0:02:53]} 5. Bg2 {[%clk 0:02:50]}  Bb7 {[%clk 0:02:52]} 6. d4 {[%clk 0:02:50]}  cxd4 {[%clk 0:02:49]} 7. Nxd4 {[%clk 0:02:51]}  Qc7 {[%clk 0:02:48]} 8. O-O {[%clk 0:02:49]}  Nc6 {[%clk 0:02:47]} 9. Re1 {[%clk 0:02:43]}  d6 {[%clk 0:02:45]} 10. Nd5 {[%clk 0:02:43]}  exd5 {[%clk 0:02:41]} 11. exd5+ {[%clk 0:02:44]}  Nce7 {[%clk 0:02:40]} 12. Nf5 {[%clk 0:02:42]}  O-O-O {[%clk 0:02:38]} 13. Bh3 {[%clk 0:02:08]}  Nxf5 {[%clk 0:02:30]} 14. Bxf5+ {[%clk 0:02:07]}  Kb8 {[%clk 0:02:31]} 15. Be3 {[%clk 0:02:06]}  Ne7 {[%clk 0:02:25]} 16. Be4 {[%clk 0:02:01]}  Qc4 {[%clk 0:02:21]} 17. Bb6 {[%clk 0:01:50]}  Rc8 {[%clk 0:02:15]} 18. b3 {[%clk 0:01:50]}  Qc3 {[%clk 0:02:07]} 19. Bd4 {[%clk 0:01:28]}  Qc7 {[%clk 0:02:05]} 20. c4 {[%clk 0:01:20]}  bxc4 {[%clk 0:02:01]} 21. bxc4 {[%clk 0:01:21]}  Qxc4 {[%clk 0:02:00]} 22. Rb1 {[%clk 0:01:21]}  Ka8 {[%clk 0:01:59]} 23. Re3 {[%clk 0:01:00]}  Nxd5 {[%clk 0:01:54]} 24. Reb3 {[%clk 0:00:50]}  Rc7 {[%clk 0:01:35]} 25. Qf3 {[%clk 0:00:31]}  f5 {[%clk 0:01:25]} 26. Rxb7 {[%clk 0:00:29]}  Rxb7 {[%clk 0:01:09]} 27. Bxd5 {[%clk 0:00:29]}  Qxd4 {[%clk 0:00:51]} 28. Rxb7 {[%clk 0:00:25]}  Qe5 {[%clk 0:00:28]} 29. Re7+ {[%clk 0:00:22]}  Kb8 {[%clk 0:00:28]} 30. Qb3+ {[%clk 0:00:22]}  Kc8 {[%clk 0:00:24]} 31. Qb7+ {[%clk 0:00:22]}  Kd8 {[%clk 0:00:23]} 32. Qd7# {[%clk 0:00:23]} 1-0


[Site "https://www.chess.com"]

[Event "Titled Tuesday Blitz May 10 Early 2022"]
[White "Bettalli, Francesco"]
[Black "Jian, Alex"]
[WhiteFideId "2816453"]
[BlackFideId "30901022"]
[WhiteElo "2216"]
[BlackElo "2111"]
[Result "1-0"]
[Round "09"]
[TimeControl "180+1"]
[Date "2022.05.11"]
[WhiteClock "0:00:44"]
[BlackClock "0:00:01"]

1. d4 {[%clk 0:03:00]}  Nf6 {[%clk 0:02:59]} 2. Nc3 {[%clk 0:03:01]}  d5 {[%clk 0:02:58]} 3. Bf4 {[%clk 0:03:00]}  a6 {[%clk 0:02:58]} 4. e3 {[%clk 0:03:00]}  e6 {[%clk 0:02:58]} 5. a3 {[%clk 0:02:58]}  c5 {[%clk 0:02:58]} 6. Nf3 {[%clk 0:02:57]}  Nc6 {[%clk 0:02:56]} 7. dxc5 {[%clk 0:02:56]}  Bxc5 {[%clk 0:02:56]} 8. Bd3 {[%clk 0:02:57]}  O-O {[%clk 0:02:55]} 9. O-O {[%clk 0:02:57]}  Qe7 {[%clk 0:02:53]} 10. Ne5 {[%clk 0:02:57]}  Nxe5 {[%clk 0:02:51]} 11. Bxe5 {[%clk 0:02:57]}  Nd7 {[%clk 0:02:44]} 12. Bg3 {[%clk 0:02:54]}  Bd6 {[%clk 0:02:35]} 13. Bxd6 {[%clk 0:02:50]}  Qxd6 {[%clk 0:02:35]} 14. e4 {[%clk 0:02:51]}  d4 {[%clk 0:02:22]} 15. Ne2 {[%clk 0:02:50]}  Ne5 {[%clk 0:02:06]} 16. h3 {[%clk 0:02:46]}  b5 {[%clk 0:01:52]} 17. f4 {[%clk 0:02:45]}  Nxd3 {[%clk 0:01:44]} 18. Qxd3 {[%clk 0:02:46]}  Bb7 {[%clk 0:01:42]} 19. Rad1 {[%clk 0:02:46]}  Rfd8 {[%clk 0:01:32]} 20. f5 {[%clk 0:02:28]}  Qe5 {[%clk 0:01:25]} 21. Ng3 {[%clk 0:02:20]}  Rac8 {[%clk 0:01:15]} 22. Rf2 {[%clk 0:02:18]}  h5 {[%clk 0:00:58]} 23. h4 {[%clk 0:01:59]}  Rc5 {[%clk 0:00:44]} 24. Rdf1 {[%clk 0:01:56]}  Rdc8 {[%clk 0:00:35]} 25. Qf3 {[%clk 0:01:43]}  exf5 {[%clk 0:00:25]} 26. Nxf5 {[%clk 0:01:20]}  Bxe4 {[%clk 0:00:24]} 27. Qxh5 {[%clk 0:01:20]}  Bxf5 {[%clk 0:00:13]} 28. Rxf5 {[%clk 0:01:21]}  Qe3+ {[%clk 0:00:14]} 29. Kh1 {[%clk 0:01:20]}  Rxf5 {[%clk 0:00:10]} 30. Qxf5 {[%clk 0:01:21]}  Qe6 {[%clk 0:00:07]} 31. Qf2 {[%clk 0:01:10]}  Qe3 {[%clk 0:00:07]} 32. Qxf7+ {[%clk 0:01:09]}  Kh8 {[%clk 0:00:07]} 33. Qh5+ {[%clk 0:01:08]}  Kg8 {[%clk 0:00:07]} 34. Qd5+ {[%clk 0:01:08]}  Kh8 {[%clk 0:00:07]} 35. Qf5 {[%clk 0:01:07]}  Re8 {[%clk 0:00:06]} 36. Kh2 {[%clk 0:01:03]}  Qe2 {[%clk 0:00:06]} 37. Rf2 {[%clk 0:01:02]}  Qe3 {[%clk 0:00:06]} 38. Rf3 {[%clk 0:01:02]}  Qe2 {[%clk 0:00:06]} 39. Rg3 {[%clk 0:01:00]}  Qe1 {[%clk 0:00:04]} 40. h5 {[%clk 0:00:57]}  Qe7 {[%clk 0:00:02]} 41. h6 {[%clk 0:00:50]}  gxh6 {[%clk 0:00:02]} 42. Rh3 {[%clk 0:00:50]}  Qg7 {[%clk 0:00:01]} 43. Qf4 {[%clk 0:00:47]}  Re6 {[%clk 0:00:01]} 44. Rg3 {[%clk 0:00:44]}  Qh7 {[%clk 0:00:01]} 45. Qf8+ {[%clk 0:00:44]} 1-0


[Site "https://www.chess.com"]

[Event "Titled Tuesday Blitz May 10 Early 2022"]
[White "Bluebaum, Matthias"]
[Black "Kazakouski, Valery"]
[WhiteFideId "24651516"]
[BlackFideId "13507443"]
[WhiteElo "2556"]
[BlackElo "2524"]
[Result "0-1"]
[Round "09"]
[TimeControl "180+1"]
[Date "2022.05.10"]
[WhiteClock "0:00:01"]
[BlackClock "0:00:13"]

1. d4 {[%clk 0:03:00]}  Nf6 {[%clk 0:02:59]} 2. c4 {[%clk 0:02:59]}  e6 {[%clk 0:03:00]} 3. Nc3 {[%clk 0:02:59]}  Bb4 {[%clk 0:02:59]} 4. e3 {[%clk 0:02:55]}  b6 {[%clk 0:02:59]} 5. Bd3 {[%clk 0:02:54]}  Bb7 {[%clk 0:03:00]} 6. Nf3 {[%clk 0:02:55]}  Be4 {[%clk 0:03:00]} 7. Be2 {[%clk 0:02:46]}  Bxc3+ {[%clk 0:02:58]} 8. bxc3 {[%clk 0:02:46]}  O-O {[%clk 0:02:59]} 9. O-O {[%clk 0:02:45]}  Nc6 {[%clk 0:02:59]} 10. Nd2 {[%clk 0:02:41]}  Bg6 {[%clk 0:02:59]} 11. f3 {[%clk 0:02:42]}  d5 {[%clk 0:02:59]} 12. Re1 {[%clk 0:02:31]}  Re8 {[%clk 0:02:57]} 13. cxd5 {[%clk 0:02:18]}  Nxd5 {[%clk 0:02:42]} 14. Qa4 {[%clk 0:01:30]}  Na5 {[%clk 0:02:26]} 15. Ne4 {[%clk 0:01:05]}  Bxe4 {[%clk 0:02:22]} 16. fxe4 {[%clk 0:01:06]}  Nxc3 {[%clk 0:02:22]} 17. Qc2 {[%clk 0:01:04]}  Nxe2+ {[%clk 0:02:22]} 18. Qxe2 {[%clk 0:01:05]}  Qh4 {[%clk 0:02:22]} 19. e5 {[%clk 0:00:59]}  c5 {[%clk 0:02:19]} 20. Bb2 {[%clk 0:00:54]}  cxd4 {[%clk 0:02:16]} 21. exd4 {[%clk 0:00:52]}  Rac8 {[%clk 0:02:14]} 22. Rad1 {[%clk 0:00:48]}  Red8 {[%clk 0:02:10]} 23. Rd3 {[%clk 0:00:47]}  Nc6 {[%clk 0:01:44]} 24. Rh3 {[%clk 0:00:43]}  Qe7 {[%clk 0:01:42]} 25. Qh5 {[%clk 0:00:41]}  h6 {[%clk 0:01:37]} 26. Bc1 {[%clk 0:00:33]}  Qb4 {[%clk 0:01:34]} 27. Rf1 {[%clk 0:00:29]}  Rd7 {[%clk 0:00:51]} 28. Bxh6 {[%clk 0:00:22]}  g6 {[%clk 0:00:50]} 29. Rg3 {[%clk 0:00:08]}  Qxd4+ {[%clk 0:00:46]} 30. Kh1 {[%clk 0:00:09]}  Qxe5 {[%clk 0:00:36]} 31. Rg5 {[%clk 0:00:07]}  Qe4 {[%clk 0:00:27]} 32. Rg4 {[%clk 0:00:06]}  Qd3 {[%clk 0:00:23]} 33. Rg1 {[%clk 0:00:02]}  Rd4 {[%clk 0:00:22]} 34. Rg5 {[%clk 0:00:01]}  Kh7 {[%clk 0:00:13]} 0-1


[Site "https://www.chess.com"]

[Event "Titled Tuesday Blitz May 10 Early 2022"]
[White "Bok, Benjamin"]
[Black "Sjugirov, Sanan"]
[WhiteFideId "1017063"]
[BlackFideId "4189302"]
[WhiteElo "2658"]
[BlackElo "2602"]
[Result "0-1"]
[Round "09"]
[TimeControl "180+1"]
[Date "2022.05.10"]
[WhiteClock "0:00:02"]
[BlackClock "0:00:06"]

1. d4 {[%clk 0:03:00]}  Nf6 {[%clk 0:03:00]} 2. c4 {[%clk 0:03:01]}  e6 {[%clk 0:03:00]} 3. Nc3 {[%clk 0:03:01]}  d5 {[%clk 0:02:54]} 4. cxd5 {[%clk 0:03:01]}  exd5 {[%clk 0:02:55]} 5. Bg5 {[%clk 0:03:01]}  c6 {[%clk 0:02:55]} 6. e3 {[%clk 0:03:01]}  h6 {[%clk 0:02:48]} 7. Bh4 {[%clk 0:03:01]}  Be7 {[%clk 0:02:48]} 8. Bd3 {[%clk 0:03:00]}  O-O {[%clk 0:02:47]} 9. Nge2 {[%clk 0:03:01]}  Nbd7 {[%clk 0:02:33]} 10. O-O {[%clk 0:03:00]}  Re8 {[%clk 0:02:30]} 11. a4 {[%clk 0:03:00]}  b6 {[%clk 0:02:20]} 12. f3 {[%clk 0:02:52]}  Bb7 {[%clk 0:02:17]} 13. e4 {[%clk 0:01:59]}  dxe4 {[%clk 0:02:15]} 14. fxe4 {[%clk 0:02:00]}  Ng4 {[%clk 0:02:12]} 15. Bxe7 {[%clk 0:01:57]}  Qxe7 {[%clk 0:02:13]} 16. Rf4 {[%clk 0:01:44]}  Qg5 {[%clk 0:01:46]} 17. Qf1 {[%clk 0:01:18]}  c5 {[%clk 0:01:34]} 18. Bb5 {[%clk 0:00:18]}  Re7 {[%clk 0:01:28]} 19. Qf3 {[%clk 0:00:14]}  Ngf6 {[%clk 0:01:08]} 20. Rf5 {[%clk 0:00:14]}  Qg6 {[%clk 0:01:09]} 21. d5 {[%clk 0:00:08]}  Re5 {[%clk 0:00:26]} 22. Nf4 {[%clk 0:00:05]}  Rxf5 {[%clk 0:00:22]} 23. exf5 {[%clk 0:00:05]}  Qxf5 {[%clk 0:00:22]} 24. Re1 {[%clk 0:00:06]}  Ne5 {[%clk 0:00:18]} 25. Qg3 {[%clk 0:00:05]}  a6 {[%clk 0:00:16]} 26. Bf1 {[%clk 0:00:03]}  Re8 {[%clk 0:00:16]} 27. d6 {[%clk 0:00:03]}  Bc6 {[%clk 0:00:15]} 28. Bxa6 {[%clk 0:00:02]}  Qd7 {[%clk 0:00:06]} 0-1


[Site "https://www.chess.com"]